bitfinex/quotes_SOLUSD_20241009
["timestamp","ask_amount","ask_price","bid_price","bid_amount"]
[1728507308806,7.1823,139.24,139.2,23.776884]
[1728507309095,7.1824,139.23,139.2,23.776884]
[1728507309402,7.1823,139.23,139.2,23.776884]
[1728507309791,7.1833,139.21,139.2,23.776884]
[1728507310000,20.0,139.28,139.21,70.25098]
[1728507310181,17.9481,139.3,139.2,23.776884]
[1728507310378,20.0,139.31,139.19,7.194]
[1728507310700,7.1839,139.2,139.19,7.194]
[1728507311390,7.1828,139.23,139.19,77.194]
[1728507311603,20.0,139.27,139.19,77.194]
[1728507311901,7.1823,139.23,139.19,77.194]
[1728507312080,7.1829,139.22,139.19,77.194]
[1728507312276,20.0,139.27,139.18,7.194]
[1728507312497,17.9533,139.25,139.18,7.194]
[1728507312808,7.1844,139.19,139.18,7.194]
[1728507312981,20.0,139.24,139.18,7.194]
[1728507313302,7.1839,139.2,139.19,7.194]
[1728507313979,20.0,139.24,139.14,15.5589]
[1728507314279,7.1864,139.15,139.14,15.5589]
[1728507314489,7.1864,139.15,139.12,70.0]
[1728507314695,7.1865,139.15,139.12,70.0]
[1728507314893,7.1859,139.17,139.12,70.0]
[1728507315101,20.0,139.19,139.12,70.0]
[1728507315796,7.1859,139.16,139.12,70.0]
[1728507316108,6.4548,139.23,139.06,0.8353499]
[1728507316109,20.0,139.22,139.06,0.8353499]
[1728507316312,7.1906,139.07,139.06,0.8353499]
[1728507316483,17.9684,139.14,139.06,0.8353499]
[1728507316484,20.0,139.13,139.06,0.8353499]
[1728507316684,7.1897,139.09,139.06,0.8353499]
[1728507317203,7.1874,139.14,139.07,77.1904]
[1728507317386,7.1874,139.14,139.09,70.0]
[1728507317805,20.0,139.17,139.07,70.0]
[1728507317982,7.1885,139.11,139.07,93.902374]
[1728507318290,31.1319,139.21,139.1,30.965884]
[1728507318497,7.1864,139.16,139.11,70.12549]
[1728507318786,20.0,139.2,139.1,23.776884]
[1728507318998,7.1871,139.14,139.1,23.776884]
[1728507319195,7.1882,139.12,139.09,70.12549]
[1728507319398,7.1882,139.12,139.06,0.8353499]
[1728507319399,7.1874,139.14,139.11,23.776884]
[1728507320085,7.1865,139.15,139.11,23.776884]
[1728507320300,7.1864,139.16,139.11,23.776884]
[1728507320502,7.1865,139.15,139.11,23.776884]
[1728507320996,7.186,139.16,139.11,23.776884]
[1728507321188,37.9598,139.2,139.11,23.776884]
[1728507321388,7.186,139.16,139.11,23.776884]
[1728507321814,37.9598,139.2,139.12,70.0]
[1728507321992,7.185,139.18,139.13,24.027864]
[1728507322192,7.1848,139.19,139.13,31.215064]
[1728507322505,53.8664,139.24,139.12,70.0]
[1728507322506,7.1861,139.16,139.12,70.0]
[1728507322723,7.1854,139.17,139.13,23.776884]
[1728507323211,31.098,139.25,139.13,23.776884]
[1728507323511,20.0,139.22,139.13,23.776884]
[1728507323712,7.1849,139.18,139.13,30.964384]
[1728507324220,7.1849,139.18,139.14,70.0]
[1728507324599,7.1843,139.2,139.14,77.1868]
[1728507324808,20.0,139.22,139.13,23.776884]
[1728507325110,7.1856,139.17,139.13,23.776884]
[1728507325607,7.1849,139.18,139.13,23.776884]
[1728507326392,7.1854,139.17,139.13,0.12549]
[1728507326589,7.1854,139.17,139.13,23.902374]
[1728507327084,7.1851,139.18,139.13,31.089774]
[1728507327315,7.186,139.16,139.13,23.776884]
[1728507327515,7.1875,139.13,139.09,20.0]
[1728507327719,7.1885,139.11,139.08,70.0]
[1728507328013,1.40647243,139.19,139.06,26.0025499]
[1728507328014,1.40647243,139.19,139.1,70.0]
[1728507328213,17.9597,139.21,139.12,70.0]
[1728507328389,21.40647243,139.2,139.11,70.0]
[1728507328596,21.40647243,139.2,139.07,87.9761]
[1728507328899,7.1877,139.13,139.07,95.1662]
[1728507329096,7.1869,139.15,139.09,77.1893]
[1728507329412,7.1886,139.11,139.07,87.9761]
[1728507329824,7.1881,139.12,139.07,70.0]
[1728507329991,7.1874,139.14,139.08,7.19]
[1728507330314,1.40647243,139.16,139.07,87.9765]
[1728507330493,1.40647243,139.16,139.06,0.8353499]
[1728507330494,7.1896,139.09,139.06,0.8353499]
[1728507330687,17.9662,139.15,139.06,0.8353499]
[1728507330688,1.40647243,139.14,139.06,0.8353499]
[1728507330892,7.1895,139.1,139.06,0.8353499]
[1728507331096,7.1895,139.09,139.06,0.8353499]
[1728507331506,17.9702,139.12,139.06,0.8353499]
[1728507331698,7.1906,139.07,139.06,0.8353499]
[1728507332618,1.40647243,139.11,139.06,0.8353499]
[1728507332925,37.9663,139.15,139.06,0.8353499]
[1728507333104,7.1885,139.12,139.07,1.43764453]
[1728507333418,7.1874,139.14,139.07,77.1905]
[1728507333592,19.36877243,139.19,139.1,7.189]
[1728507333593,1.40647243,139.18,139.1,7.189]
[1728507333799,1.40647243,139.18,139.11,1.43725113]
[1728507333998,7.1865,139.15,139.1,23.776884]
[1728507334195,7.1865,139.15,139.11,1.4372855]
[1728507334415,17.9654,139.16,139.09,93.776884]
[1728507334633,7.1882,139.12,139.09,23.776884]
[1728507334813,1.40647243,139.19,139.11,70.0]
[1728507335012,1.40647243,139.19,139.12,1.43707447]
[1728507335311,7.1849,139.18,139.13,23.776884]
[1728507335733,7.1859,139.16,139.12,23.776884]
[1728507336029,7.1855,139.17,139.12,23.776884]
[1728507336334,7.1855,139.17,139.12,30.964884]
[1728507336524,1.40647243,139.21,139.15,7.1859]
[1728507336730,1.40647243,139.2,139.12,93.776884]
[1728507336930,1.40647243,139.23,139.12,23.776884]
[1728507337240,17.9585,139.21,139.11,23.776884]
[1728507337417,7.1865,139.15,139.09,0.12549]
[1728507337616,7.1865,139.15,139.1,70.0]
[1728507337821,21.40647243,139.2,139.11,0.12549]
[1728507338127,7.186,139.16,139.11,0.12549]
[1728507338355,7.1871,139.14,139.1,0.12549]
[1728507338505,7.1871,139.14,139.1,70.0]
[1728507338704,7.1864,139.15,139.1,77.189]
[1728507338921,7.187,139.14,139.11,23.776884]
[1728507339106,7.187,139.14,139.1,23.776884]
[1728507341519,7.1906,139.07,139.06,0.8353499]
[1728507341838,20.0,139.13,139.06,0.8353499]
[1728507342035,1.40647243,139.12,139.06,0.8353499]
[1728507342216,7.1906,139.07,139.06,0.8353499]
[1728507343424,7.1901,139.08,139.06,0.8353499]
[1728507343620,7.1906,139.07,139.06,0.8353499]
[1728507344511,19.37767243,139.12,139.06,0.8353499]
[1728507344718,7.1901,139.09,139.06,0.8353499]
[1728507344917,7.1901,139.08,139.06,0.8353499]
[1728507345128,1.40647243,139.1,139.06,0.8353499]
[1728507345333,7.1906,139.07,139.06,0.8353499]
[1728507346320,27.44158,139.07,139.06,4.99e-05]
[1728507346636,27.1906,139.07,139.06,4.99e-05]
[1728507347218,33.4927,139.07,139.06,4.99e-05]
[1728507347415,33.4927,139.07,138.94,6.57133113]
[1728507347416,20.0,139.04,138.94,6.57133113]
[1728507347617,7.1968,138.95,138.94,6.57133113]
[1728507348233,17.9885,138.98,138.94,6.57133113]
[1728507348234,7.1954,138.98,138.94,6.57133113]
[1728507348536,7.1959,138.97,138.94,6.57133113]
[1728507348734,1.40647243,139.01,138.94,6.57133113]
[1728507348938,7.1958,138.97,138.94,6.57133113]
[1728507349319,1.40647243,139.01,138.94,6.57133113]
[1728507349521,17.9859,139.0,138.94,6.57133113]
[1728507349716,21.40647243,138.99,138.94,6.57133113]
[1728507350051,7.1925,139.04,138.97,70.0]
[1728507350222,7.1932,139.02,138.96,15.1197]
[1728507350421,7.1937,139.01,138.97,1.43864645]
[1728507350617,1.40647243,139.06,138.98,1.43869278]
[1728507350848,17.9791,139.05,138.95,7.1967]
[1728507351017,1.40647243,139.04,138.96,70.0]
[1728507351426,7.195,138.99,138.94,24.56373113]
[1728507352025,7.1953,138.98,138.95,23.776884]
[1728507352224,21.40647243,139.04,138.96,8.63503691]
[1728507352428,6.3021,139.07,138.96,8.63503691]
[1728507352429,7.1916,139.06,139.0,23.776884]
[1728507352624,1.40647243,139.1,139.02,23.776884]
[1728507352838,7.1902,139.08,139.03,7.1926]
[1728507353020,7.1902,139.08,139.02,100.969984]
[1728507353218,1.40647243,139.11,139.02,70.0]
[1728507353443,1.40647243,139.11,139.01,23.902374]
[1728507353740,7.1911,139.06,139.01,23.902374]
[1728507353918,1.40647243,139.11,139.03,0.12549]
[1728507354121,7.1913,139.06,139.01,23.902374]
[1728507354322,7.1916,139.05,139.01,23.902374]
[1728507354849,19.37897243,139.11,139.01,23.902374]
[1728507355137,19.37897243,139.11,139.0,17.9853]
[1728507355138,7.1922,139.04,139.0,17.9853]
[1728507355339,7.1916,139.06,139.01,70.0]
[1728507355538,7.1916,139.06,139.0,17.9853]
[1728507355855,7.1916,139.06,138.99,77.1942]
[1728507355856,17.9676,139.14,139.04,70.0]
[1728507356055,17.9676,139.14,139.01,1.43807283]
[1728507356056,19.37407243,139.14,139.06,70.0]
[1728507356253,7.1889,139.11,139.06,77.191]
[1728507356428,1.40647243,139.17,139.1,23.776884]
[1728507356751,1.40647243,139.17,139.09,70.25098]
[1728507356920,1.40647243,139.19,139.1,23.776884]
[1728507357120,1.40647243,139.19,139.12,23.776884]
[1728507357336,13.3546,139.24,139.14,23.776884]
[1728507357536,1.40647243,139.23,139.14,23.776884]
[1728507357746,7.1849,139.18,139.15,1.43690371]
[1728507357932,7.1843,139.2,139.14,23.776884]
[1728507358132,7.1843,139.2,139.16,23.776884]
[1728507358320,7.1843,139.2,139.17,1.43671918]
[1728507358535,7.1843,139.2,139.16,23.776884]
[1728507358947,7.1844,139.19,139.16,23.776884]
[1728507359127,7.1851,139.18,139.14,23.776884]
[1728507359329,20.0,139.22,139.14,23.776884]
[1728507359547,20.0,139.19,139.09,77.1891]
[1728507359851,7.187,139.14,139.09,70.0]
[1728507360053,7.1875,139.13,139.07,110.4554]
[1728507360353,7.1886,139.11,139.07,85.2896]
[1728507360827,7.1891,139.1,139.07,85.2896]
[1728507361026,7.1891,139.1,139.07,15.2896]
[1728507361243,20.0,139.13,139.03,87.9808]
[1728507361443,1.40647243,139.12,139.03,87.9808]
[1728507361639,17.968,139.14,139.05,70.0]
[1728507361849,19.37447243,139.14,139.05,70.0]
[1728507362237,19.36967243,139.18,139.07,70.0]
[1728507362563,42.6581,139.19,139.11,70.0]
[1728507362564,6.5926,139.19,139.11,70.0]
[1728507362851,7.1865,139.15,139.12,23.776884]
[1728507363260,1.40647243,139.22,139.14,23.776884]
[1728507363430,7.1842,139.2,139.17,23.776884]
[1728507363631,7.1839,139.2,139.17,23.776884]
[1728507363838,19.35937243,139.26,139.17,30.962284]
[1728507364355,7.1829,139.22,139.2,23.776884]
[1728507364736,7.1829,139.22,139.17,70.0]
[1728507364933,7.1829,139.22,139.18,23.902374]
[1728507365134,7.1844,139.19,139.12,77.1875]
[1728507365326,17.9561,139.23,139.15,70.0]
[1728507365529,7.1849,139.18,139.15,70.0]
[1728507365831,21.40647243,139.22,139.15,70.0]
[1728507366148,7.1838,139.21,139.17,70.0]
[1728507366335,19.35837243,139.27,139.17,70.0]
[1728507366336,20.0,139.26,139.17,70.0]
[1728507366531,1.40647243,139.25,139.16,0.12549]
[1728507366748,17.9546,139.24,139.16,0.12549]
[1728507366951,17.9546,139.24,139.17,0.25098]
[1728507366952,7.1844,139.19,139.17,0.25098]
[1728507367132,7.1838,139.21,139.18,23.776884]
[1728507367327,1.40647243,139.23,139.15,70.0]
[1728507367534,7.1854,139.17,139.15,70.0]
[1728507367740,7.1849,139.18,139.15,70.0]
[1728507368635,7.1865,139.15,139.12,70.0]
[1728507368846,7.188,139.12,139.11,15.0657]
[1728507369050,1.40647243,139.17,139.11,15.0657]
[1728507369359,7.185,139.18,139.14,70.0]
[1728507369535,21.40647243,139.21,139.12,70.0]
[1728507369736,21.40647243,139.21,139.14,70.0]
[1728507370251,7.1854,139.17,139.12,70.0]
[1728507370454,7.1859,139.17,139.12,70.0]
[1728507370660,7.1859,139.17,139.14,70.0]
[1728507370894,1.40647243,139.16,139.07,15.1896]
[1728507371033,7.1896,139.09,139.07,15.1896]
[1728507371231,1.40647243,139.14,139.07,15.1896]
[1728507371452,7.1896,139.09,139.07,15.1896]
[1728507371654,7.1891,139.1,139.07,15.1896]
[1728507371854,7.1885,139.12,139.08,70.0]
[1728507372039,20.0,139.15,139.08,70.0]
[1728507372040,7.1875,139.14,139.08,70.0]
[1728507372246,7.1875,139.13,139.1,70.0]
[1728507372436,7.188,139.12,139.1,70.0]
[1728507372754,7.1885,139.11,139.08,70.0]
[1728507373142,21.40647243,139.16,139.08,70.0]
[1728507373349,7.1875,139.13,139.08,70.0]
[1728507373742,21.40647243,139.16,139.08,70.0]
[1728507373743,7.188,139.12,139.08,70.0]
[1728507374042,1.40647243,139.19,139.11,23.776884]
[1728507374245,7.1854,139.18,139.15,23.776884]
[1728507374448,7.1854,139.17,139.16,1.43683998]
[1728507374650,7.1854,139.17,139.13,25.46481002]
[1728507374959,1.40647243,139.23,139.16,23.776884]
[1728507375153,7.1834,139.21,139.18,23.776884]
[1728507375357,7.1807,139.27,139.2,30.960284]
[1728507375655,7.1803,139.27,139.24,23.776884]
[1728507375976,17.9417,139.34,139.26,23.776884]
[1728507376283,7.1794,139.29,139.26,23.776884]
[1728507376570,7.1802,139.28,139.26,23.776884]
[1728507376752,6.6665,139.37,139.23,70.25098]
[1728507376753,1.40647243,139.36,139.23,70.25098]
[1728507376953,7.1803,139.27,139.24,23.776884]
[1728507377157,7.1797,139.29,139.26,23.776884]
[1728507377371,7.1798,139.28,139.26,23.776884]
[1728507377676,7.1829,139.22,139.2,24.027864]
[1728507377967,19.35707243,139.28,139.22,23.776884]
[1728507378179,7.1818,139.25,139.2,0.12549]
[1728507378548,7.1829,139.22,139.2,0.12549]
[1728507378777,7.1823,139.23,139.19,70.0]
[1728507379272,7.1823,139.23,139.17,17.9623]
[1728507379273,1.40647243,139.28,139.2,0.12549]
[1728507379483,1.40647243,139.28,139.2,23.902374]
[1728507379484,7.1828,139.23,139.2,23.902374]
[1728507379851,21.40647243,139.31,139.22,23.776884]
[1728507380051,7.1808,139.26,139.22,23.776884]
[1728507380347,0.8353499,139.41,139.21,70.12549]
[1728507380348,17.9429,139.34,139.25,24.027864]
[1728507380547,1.40647243,139.33,139.25,23.776884]
[1728507380781,17.9454,139.32,139.25,23.776884]
[1728507381071,17.9456,139.31,139.25,23.776884]
[1728507381271,7.1803,139.27,139.25,23.776884]
[1728507381473,7.1798,139.28,139.25,23.776884]
[1728507381666,7.1798,139.28,139.27,23.776884]
[1728507381874,7.1797,139.29,139.27,23.776884]
[1728507382179,7.1792,139.3,139.27,23.776884]
[1728507382560,7.1792,139.3,139.26,70.0]
[1728507382561,17.9456,139.31,139.26,23.776884]
[1728507382768,20.0,139.3,139.22,70.0]
[1728507382955,7.1808,139.26,139.22,70.0]
[1728507383866,17.9458,139.31,139.24,70.0]
[1728507384063,17.9419,139.34,139.27,23.776884]
[1728507384371,7.1808,139.26,139.25,23.776884]
[1728507384680,7.1803,139.27,139.25,23.776884]
[1728507385085,1.40647243,139.31,139.25,23.776884]
[1728507385387,21.40647243,139.31,139.21,70.0]
[1728507385588,7.1823,139.23,139.2,85.4049]
[1728507386093,7.1812,139.26,139.21,1.43626262]
[1728507386263,7.1814,139.25,139.23,70.0]
[1728507386466,7.1817,139.25,139.23,70.0]
[1728507386766,7.1824,139.23,139.22,23.776884]
[1728507386966,7.1813,139.26,139.24,23.776884]
[1728507387205,21.40647243,139.31,139.24,23.776884]
[1728507387206,7.1803,139.27,139.24,23.776884]
[1728507387373,7.1808,139.26,139.24,23.776884]
[1728507388895,7.1803,139.27,139.24,23.776884]
[1728507389392,53.8339,139.32,139.22,7.30829]
[1728507389393,19.34717243,139.35,139.28,23.776884]
[1728507389610,7.18,139.28,139.25,70.12549]
[1728507389895,7.1793,139.29,139.28,23.776884]
[1728507390084,7.1793,139.29,139.28,25.21252455]
[1728507390289,17.9442,139.33,139.28,23.776884]
[1728507390473,7.1792,139.29,139.28,23.776884]
[1728507390679,1.40647243,139.32,139.25,70.12549]
[1728507390877,7.1807,139.27,139.23,70.0]
[1728507391091,17.9464,139.31,139.23,70.0]
[1728507391613,19.35287243,139.31,139.23,70.0]
[1728507391798,17.9464,139.31,139.25,70.0]
[1728507392099,35.8897,139.32,139.18,70.0]
[1728507392100,7.1835,139.21,139.18,70.0]
[1728507392281,7.183,139.22,139.2,70.0]
[1728507392484,7.1844,139.19,139.17,70.0]
[1728507392701,7.1849,139.18,139.15,70.0]
[1728507392909,7.1835,139.21,139.18,70.0]
[1728507393082,17.9535,139.25,139.16,70.0]
[1728507393282,1.40647243,139.24,139.16,70.0]
[1728507393502,7.185,139.18,139.16,70.0]
[1728507393710,7.1854,139.17,139.16,70.0]
[1728507394004,17.9569,139.23,139.17,70.0]
[1728507394208,17.9569,139.23,139.12,33.8426]
[1728507394209,19.36337243,139.23,139.15,70.0]
[1728507394592,7.1855,139.17,139.15,70.0]
[1728507394791,17.9569,139.23,139.18,70.0]
[1728507394995,1.40647243,139.26,139.18,70.0]
[1728507395213,1.40647243,139.31,139.22,70.0]
[1728507395508,7.181,139.26,139.23,1.43586206]
[1728507395715,7.181,139.26,139.24,23.776884]
[1728507396084,7.1803,139.27,139.24,93.776884]
[1728507396406,7.1806,139.27,139.25,0.25098]
[1728507396585,17.9477,139.3,139.25,0.25098]
[1728507396786,7.1798,139.28,139.25,0.25098]
[1728507397590,7.1791,139.3,139.27,23.776884]
[1728507397809,7.1791,139.3,139.26,70.0]
[1728507397810,7.1787,139.3,139.29,23.776884]
[1728507397983,17.9433,139.33,139.25,0.25098]
[1728507398186,1.40647243,139.34,139.27,23.776884]
[1728507398512,7.1787,139.3,139.27,23.776884]
[1728507398701,7.1787,139.3,139.29,23.776884]
[1728507399183,17.9425,139.34,139.29,23.776884]
[1728507399387,17.9383,139.37,139.3,71.43532949]
[1728507399707,17.9383,139.37,139.31,23.776884]
[1728507399892,7.1756,139.36,139.33,23.776884]
[1728507400090,7.1751,139.37,139.35,23.776884]
[1728507400284,19.34077243,139.4,139.35,23.776884]
[1728507400285,7.1756,139.36,139.35,23.776884]
[1728507400485,7.174,139.4,139.35,23.776884]
[1728507400791,0.8353499,139.41,139.34,77.30199]
[1728507400792,7.1741,139.39,139.37,23.776884]
[1728507401010,7.1741,139.39,139.38,25.21151696]
[1728507401313,0.8353499,139.41,139.39,23.776884]
[1728507401513,0.8353499,139.41,139.4,1.43441593]
[1728507401812,0.8353499,139.41,139.38,70.0]
[1728507401813,0.8353499,139.41,139.38,15.8924]
[1728507402110,0.8353499,139.41,139.36,23.776884]
[1728507402308,7.1751,139.37,139.36,23.776884]
[1728507402511,0.8353499,139.41,139.36,23.776884]
[1728507402702,7.1746,139.38,139.36,23.776884]
[1728507403210,7.1751,139.37,139.36,23.776884]
[1728507403400,20.17512233,139.41,139.33,15.8924]
[1728507403912,7.1757,139.36,139.33,15.8924]
[1728507404122,1.40647243,139.39,139.33,15.8924]
[1728507404417,7.1792,139.29,139.28,15.4183]
[1728507404623,21.40647243,139.34,139.28,15.4183]
[1728507404915,7.1792,139.29,139.28,15.4183]
[1728507405217,17.9447,139.32,139.25,70.0]
[1728507405526,17.9447,139.32,139.2,6.0525]
[1728507405527,7.1824,139.23,139.2,6.0525]
[1728507405724,7.1818,139.24,139.21,70.0]
[1728507406105,7.1824,139.23,139.19,70.0]
[1728507406309,17.9482,139.29,139.21,70.0]
[1728507406498,7.1808,139.26,139.23,70.0]
[1728507406715,7.1801,139.28,139.24,1.4360398]
[1728507406923,7.1808,139.26,139.23,70.0]
[1728507407118,1.40647243,139.31,139.21,70.0]
[1728507407302,7.1813,139.25,139.21,70.0]
[1728507407817,7.1818,139.24,139.21,70.0]
[1728507408114,1.40647243,139.29,139.19,70.0]
[1728507408115,7.1828,139.22,139.19,70.0]
[1728507408424,7.1826,139.23,139.19,70.0]
[1728507408638,7.1834,139.21,139.19,70.0]
[1728507408931,7.1828,139.22,139.19,70.0]
[1728507409515,7.1834,139.21,139.19,70.0]
[1728507409801,7.1827,139.23,139.19,70.0]
[1728507410128,21.40647243,139.26,139.19,70.0]
[1728507410341,20.0,139.26,139.19,70.0]
[1728507410628,6.7338,139.36,139.18,15.4183]
[1728507410629,7.1818,139.25,139.21,70.0]
[1728507410996,1.40647243,139.3,139.24,24.027864]
[1728507411202,19.35327243,139.31,139.24,24.027864]
[1728507411419,19.35327243,139.31,139.24,23.776884]
[1728507411717,7.182,139.24,139.21,23.776884]
[1728507411904,7.182,139.24,139.2,23.776884]
[1728507412104,7.1824,139.23,139.21,0.12549]
[1728507413025,7.1824,139.23,139.21,0.25098]
[1728507413521,7.1828,139.22,139.2,23.776884]
[1728507413721,1.40647243,139.28,139.19,70.0]
[1728507413722,7.1823,139.23,139.21,23.776884]
[1728507413901,7.1818,139.25,139.22,25.21320849]
[1728507414100,7.1821,139.24,139.22,25.21320849]
[1728507414308,7.1823,139.23,139.22,23.776884]
[1728507414504,17.9521,139.26,139.18,15.4183]
[1728507414733,7.1844,139.19,139.18,15.4183]
[1728507414926,7.1838,139.21,139.18,15.4183]
[1728507415140,17.9559,139.23,139.13,70.0]
[1728507415301,7.1859,139.17,139.15,70.0]
[1728507415507,6.7338,139.27,139.09,15.9569]
[1728507415508,20.0,139.25,139.17,70.0]
[1728507415833,7.1839,139.2,139.15,70.0]
[1728507416029,7.1844,139.19,139.15,70.0]
[1728507416219,7.1839,139.2,139.15,77.1864]
[1728507416522,7.1844,139.19,139.16,0.12549]
[1728507416727,7.1839,139.2,139.18,24.027864]
[1728507416929,7.1839,139.2,139.18,23.902374]
[1728507416930,7.184,139.2,139.18,23.902374]
[1728507418009,1.40647243,139.19,139.12,70.0]
[1728507418215,1.40647243,139.21,139.12,70.0]
[1728507418413,1.65745243,139.24,139.12,70.0]
[1728507419303,1.65745243,139.24,139.09,33.9299]
[1728507419304,7.1869,139.15,139.11,70.0]
[1728507419532,20.0,139.19,139.13,70.0]
[1728507419817,1.40647243,139.18,139.09,103.9299]
[1728507420022,20.0,139.19,139.13,70.0]
[1728507420309,7.186,139.16,139.13,70.0]
[1728507420629,20.0,139.19,139.11,70.0]
[1728507420630,7.1869,139.15,139.11,70.0]
[1728507420836,7.187,139.14,139.11,70.0]
[1728507421051,7.1864,139.16,139.11,70.0]
[1728507421345,7.1864,139.16,139.13,70.0]
[1728507421641,6.2126,139.17,139.05,35.9579]
[1728507421854,7.1881,139.12,139.09,70.0]
[1728507422027,1.40647243,139.16,139.09,70.0]
[1728507422028,7.1875,139.13,139.09,70.0]
[1728507422222,60.1052,139.17,139.12,7.188]
[1728507422223,7.1858,139.17,139.12,7.188]
[1728507422422,7.1864,139.16,139.12,70.0]
[1728507422624,7.1874,139.14,139.1,70.0]
[1728507422823,1.40647243,139.13,139.09,15.4932]
[1728507423050,7.1898,139.09,139.04,98.8537]
[1728507423240,7.1902,139.08,139.04,91.6616]
[1728507423425,17.9725,139.11,139.04,91.6616]
[1728507423750,7.1891,139.1,139.06,70.0]
[1728507423932,1.40647243,139.13,139.06,70.0]
[1728507424126,17.9678,139.14,139.08,70.0]
[1728507424325,7.1886,139.11,139.08,70.0]
[1728507424752,7.1886,139.11,139.09,23.902374]
[1728507426654,7.1875,139.13,139.11,23.776884]
[1728507426839,7.1875,139.13,139.12,25.21428331]
[1728507427038,19.36637243,139.2,139.12,0.25098]
[1728507427244,7.186,139.16,139.12,0.25098]
[1728507427438,19.36637243,139.2,139.12,0.25098]
[1728507427752,7.1875,139.13,139.12,0.12549]
[1728507427943,7.188,139.12,139.1,23.776884]
[1728507428248,7.188,139.12,139.07,70.0]
[1728507428249,7.1881,139.12,139.08,0.12549]
[1728507428553,1.40647243,139.2,139.11,0.12549]
[1728507428746,20.0,139.18,139.09,0.12549]
[1728507428954,7.188,139.13,139.09,0.12549]
[1728507429444,17.9669,139.15,139.09,25.33984163]
[1728507429646,20.0,139.16,139.09,23.902374]
[1728507429848,7.188,139.12,139.09,23.902374]
[1728507430052,7.1875,139.13,139.09,23.902374]
[1728507430546,7.1875,139.13,139.11,23.776884]
[1728507430753,7.188,139.12,139.11,23.776884]
[1728507432027,17.9684,139.14,139.05,95.17]
[1728507432341,7.1891,139.1,139.05,95.17]
[1728507432854,7.1886,139.11,139.07,70.0]
[1728507433352,7.1879,139.13,139.09,93.776884]
[1728507433729,19.36677243,139.2,139.12,23.776884]
[1728507433936,19.36677243,139.2,139.13,1.43718602]
[1728507434135,7.1858,139.17,139.12,23.776884]
[1728507434335,7.185,139.18,139.14,23.776884]
[1728507434538,1.40647243,139.2,139.16,23.776884]
[1728507434539,7.1855,139.17,139.16,23.776884]
[1728507434749,6.0703,139.21,139.16,23.776884]
[1728507434940,19.36287243,139.23,139.18,23.776884]
[1728507435144,7.1855,139.17,139.14,24.027864]
[1728507435343,1.40647243,139.22,139.14,23.902374]
[1728507435533,17.9597,139.21,139.14,23.902374]
[1728507435729,7.1854,139.17,139.14,23.902374]
[1728507435931,7.1863,139.16,139.14,23.902374]
[1728507436131,1.40647243,139.2,139.13,23.776884]
[1728507436354,7.1866,139.15,139.13,23.776884]
[1728507436658,7.187,139.14,139.13,23.776884]
[1728507436836,20.0,139.18,139.13,23.776884]
[1728507437035,17.9617,139.19,139.13,23.776884]
[1728507437240,7.1866,139.15,139.13,23.776884]
[1728507437545,7.1853,139.18,139.14,0.12549]
[1728507437747,1.40647243,139.23,139.17,0.12549]
[1728507437953,7.1833,139.21,139.18,23.776884]
[1728507438143,7.1833,139.21,139.2,23.776884]
[1728507438854,19.36027243,139.25,139.2,23.776884]
[1728507439048,7.1833,139.21,139.2,23.776884]
[1728507439236,7.1832,139.22,139.2,23.776884]
[1728507439462,7.1833,139.21,139.2,23.776884]